bitfinex-derivatives/quotes_SOLF0:USTF0_20250626
["timestamp","ask_amount","ask_price","bid_price","bid_amount"]
[1750967416365,7.0144,142.52,142.49,7.0153]
[1750967417372,35.54,142.54,142.48,4.51298414]
[1750967417871,35.54,142.54,142.5,7.0147]
[1750967418173,35.54,142.54,142.48,4.51298414]
[1750967420373,7.0139,142.53,142.5,7.0148]
[1750967423079,42.5533,142.54,142.51,7.0145]
[1750967423679,7.0136,142.53,142.5,7.0148]
[1750967424877,42.5534,142.54,142.51,7.0144]
[1750967425577,7.0136,142.53,142.51,7.0144]
[1750967426080,7.0136,142.53,142.5,7.0148]
[1750967427683,42.5533,142.54,142.51,7.0145]
[1750967428483,4.51298414,142.56,142.5,4.51298414]
[1750967428678,35.54,142.57,142.5,4.51298414]
[1750967428875,35.54,142.57,142.54,7.0129]
[1750967429180,35.54,142.57,142.52,4.51298414]
[1750967429377,7.0124,142.56,142.53,7.0133]
[1750967429583,35.54,142.57,142.52,4.51298414]
[1750967429781,35.54,142.57,142.5,11.60018414]
[1750967430687,4.51298414,142.54,142.49,35.54]
[1750967430892,7.0139,142.53,142.5,7.0151]
[1750967431183,4.51298414,142.54,142.49,35.54]
[1750967431387,7.014,142.53,142.5,7.015]
[1750967431589,40.05298414,142.57,142.5,4.51298414]
[1750967432784,7.0129,142.55,142.5,4.51298414]
[1750967433385,7.0129,142.55,142.52,7.0138]
[1750967433584,35.54,142.57,142.5,4.51298414]
[1750967433772,2.3546,142.58,142.5,4.51298414]
[1750967434172,7.0118,142.57,142.54,7.013]
[1750967434679,7.0117,142.57,142.54,7.013]
[1750967434881,6.14039871,142.64,142.48,20.28769564]
[1750967435075,41.74039871,142.64,142.56,4.51298414]
[1750967435382,46.25338285,142.64,142.56,4.51298414]
[1750967435587,41.74039871,142.64,142.56,4.51298414]
[1750967435784,4.51298414,142.59,142.54,7.0127]
[1750967435990,4.51298414,142.59,142.52,40.11298414]
[1750967436180,35.6,142.6,142.52,35.6]
[1750967436379,44.54877672,142.63,142.55,7.0123]
[1750967436683,4.51298414,142.61,142.54,4.51298414]
[1750967436892,11.52298414,142.61,142.56,7.0118]
[1750967437081,4.51298414,142.61,142.56,7.0118]
[1750967437282,35.6,142.63,142.56,4.51298414]
[1750967437486,35.6,142.63,142.58,7.0108]
[1750967438180,7.0095,142.62,142.58,7.0108]
[1750967438487,35.6,142.63,142.57,7.0114]
[1750967438884,7.0095,142.62,142.57,7.0114]
[1750967439187,35.6,142.63,142.57,7.0114]
[1750967439386,35.6,142.63,142.56,11.52488414]
[1750967439582,4.51298414,142.62,142.56,4.51298414]
[1750967439782,4.51298414,142.62,142.54,4.51298414]
[1750967439984,4.51298414,142.6,142.52,47.12658414]
[1750967440183,4.51298414,142.58,142.52,35.6]
[1750967440384,7.0135,142.54,142.49,35.6]
[1750967440583,7.0135,142.54,142.5,7.0147]
[1750967443997,4.51298414,142.54,142.49,35.6]
[1750967444492,7.0138,142.53,142.49,42.6153]
[1750967445392,4.51298414,142.54,142.49,35.6]
[1750967445595,40.11298414,142.54,142.46,50.96279564]
[1750967446090,40.11298414,142.54,142.48,7.0158]
[1750967446596,7.0145,142.52,142.48,7.0158]
[1750967446896,4.51298414,142.52,142.47,7.0164]
[1750967447096,7.0149,142.51,142.47,7.0164]
[1750967447293,2.3414,142.53,142.46,40.11298414]
[1750967447496,7.0134,142.54,142.5,4.51298414]
[1750967447889,35.6,142.56,142.51,7.0146]
[1750967448196,7.0129,142.55,142.51,7.0146]
[1750967448396,35.6,142.56,142.51,7.0146]
[1750967448598,7.0134,142.54,142.51,7.0146]
[1750967448997,35.6,142.56,142.45,8.5775115]
[1750967448998,4.51298414,142.53,142.45,8.5775115]
[1750967449294,37.925,142.52,142.47,4.51298414]
[1750967449502,37.925,142.52,142.48,7.0158]
[1750967449703,37.925,142.52,142.47,4.51298414]
[1750967449704,44.9394,142.52,142.47,4.51298414]
[1750967449997,44.9394,142.52,142.49,7.0153]
[1750967450199,35.6,142.52,142.47,4.51298414]
[1750967450404,35.6,142.52,142.47,13.09049564]
[1750967450600,35.6,142.52,142.5,7.015]
[1750967451603,7.0132,142.54,142.51,7.0146]
[1750967452196,7.0132,142.54,142.52,7.014]
[1750967452398,40.02763466,142.56,142.52,7.014]
[1750967452399,7.0128,142.55,142.52,7.014]
[1750967453298,7.0128,142.55,142.51,7.0143]
[1750967453505,40.02763466,142.56,142.51,7.0143]
[1750967453801,35.6,142.56,142.51,7.0143]
[1750967454105,7.0129,142.55,142.51,7.0143]
[1750967454797,7.0129,142.55,142.52,7.014]
[1750967455600,4.6775,142.57,142.51,4.51298414]
[1750967455812,2.325,142.57,142.53,4.51298414]
[1750967456098,46.91543963,142.59,142.53,4.51298414]
[1750967457103,46.91543963,142.59,142.51,4.51298414]
[1750967457303,46.91543963,142.59,142.54,7.0129]
[1750967457504,46.91543963,142.59,142.51,4.51298414]
[1750967457701,7.0119,142.57,142.53,7.0133]
[1750967458101,46.91543963,142.59,142.51,4.51298414]
[1750967458302,4.43255549,142.58,142.51,4.51298414]
[1750967458602,4.51298414,142.57,142.5,48.69049564]
[1750967459598,7.0129,142.55,142.52,7.0138]
[1750967459799,4.51298414,142.57,142.5,35.6]
[1750967460004,7.0137,142.53,142.5,42.6148]
[1750967460209,35.6,142.55,142.5,7.0148]
[1750967460396,7.014,142.53,142.5,7.0148]
[1750967460800,7.014,142.53,142.49,4.51298414]
[1750967460801,7.014,142.53,142.49,11.52828414]
[1750967461001,35.6,142.55,142.49,11.52828414]
[1750967461200,40.11298414,142.55,142.49,11.52828414]
[1750967461503,40.11298414,142.55,142.47,48.69049564]
[1750967461906,40.11298414,142.55,142.5,7.015]
[1750967462210,44.55104719,142.55,142.5,7.015]
[1750967462407,7.0134,142.54,142.5,7.015]
[1750967463313,7.0134,142.54,142.47,48.69049564]
[1750967463508,7.0134,142.54,142.49,4.51298414]
[1750967463905,7.0134,142.54,142.51,7.0144]
[1750967464212,42.6128,142.55,142.51,4.51298414]
[1750967464413,42.6128,142.55,142.52,7.0138]
[1750967464613,7.0132,142.54,142.52,7.0138]
[1750967465611,7.0132,142.54,142.51,11.52728414]
[1750967466206,7.0132,142.54,142.51,7.0143]
[1750967466407,7.0132,142.54,142.49,13.09049564]
[1750967467003,7.0132,142.54,142.51,7.0141]
[1750967467511,7.0132,142.54,142.51,7.0143]
[1750967468412,7.0132,142.54,142.52,7.0141]
[1750967469802,7.0132,142.54,142.51,7.0142]
[1750967470208,4.51298414,142.55,142.49,8.5775115]
[1750967470403,4.51298414,142.53,142.47,8.5775115]
[1750967470611,41.61298414,142.53,142.47,8.5775115]
[1750967470817,7.0143,142.52,142.48,7.0157]
[1750967471019,41.61298414,142.53,142.48,7.0157]
[1750967471517,7.0148,142.51,142.48,7.0157]
[1750967471714,37.1,142.53,142.47,8.5775115]
[1750967471912,7.0153,142.5,142.45,8.5775115]
[1750967472114,4.51298414,142.52,142.46,8.5775115]
[1750967472815,4.42230816,142.55,142.47,13.09049564]
[1750967473015,46.52168414,142.56,142.49,4.51298414]
[1750967473211,7.0137,142.53,142.5,7.0148]
[1750967473918,7.0137,142.53,142.51,7.0145]
[1750967474520,7.0134,142.54,142.51,7.0145]
[1750967474711,46.52168414,142.56,142.49,4.51298414]
[1750967474910,42.0087,142.56,142.49,13.09049564]
[1750967475114,46.52168414,142.56,142.48,37.1]
[1750967475416,4.51298414,142.54,142.48,37.1]
[1750967475916,4.51298414,142.54,142.46,8.5775115]
[1750967476110,7.0149,142.51,142.46,8.5775115]
[1750967476313,7.0149,142.51,142.48,7.0157]
[1750967476714,7.0152,142.5,142.45,57.04391677]
[1750967476919,7.0152,142.5,142.47,7.0163]
[1750967477122,7.0156,142.49,142.45,45.6775115]
[1750967477323,43.86620527,142.52,142.46,7.0168]
[1750967477707,7.0159,142.49,142.46,7.0168]
[1750967477910,43.86620527,142.52,142.45,52.6949115]
[1750967478110,43.86620527,142.52,142.45,37.1]
[1750967478317,7.0151,142.5,142.45,37.1]
[1750967478515,7.0151,142.5,142.46,7.0167]
[1750967478714,7.0154,142.5,142.45,37.1]
[1750967479822,7.0154,142.5,142.47,7.0165]
[1750967480023,7.0157,142.49,142.47,7.0165]
[1750967480321,7.0157,142.49,142.46,7.0169]
[1750967480620,7.0157,142.49,142.45,37.1]
[1750967481825,43.86620527,142.48,142.42,8.5775115]
[1750967482323,7.0175,142.46,142.43,7.0183]
[1750967483424,7.0178,142.45,142.42,15.5962115]
[1750967483815,7.0178,142.45,142.42,8.5775115]
[1750967484010,7.0178,142.45,142.42,15.5963115]
[1750967484216,43.86620527,142.48,142.41,8.5775115]
[1750967484618,43.86620527,142.48,142.4,8.5775115]
[1750967484817,6.76620527,142.46,142.4,8.5775115]
[1750967485120,6.76620527,142.44,142.37,15.5987115]
[1750967485319,7.0198,142.41,142.37,7.0212]
[1750967485726,43.86620527,142.44,142.37,7.0212]
[1750967486027,7.02,142.41,142.37,7.0212]
[1750967486832,7.02,142.41,142.38,7.0209]
[1750967487727,6.76620527,142.4,142.36,8.5775115]
[1750967488029,6.76620527,142.39,142.33,8.5775115]
[1750967488331,37.1,142.4,142.32,15.34371677]
[1750967488540,37.1,142.4,142.32,6.76620527]
[1750967488831,7.0213,142.38,142.32,6.76620527]
[1750967489020,37.1,142.4,142.32,6.76620527]
[1750967489216,7.0209,142.39,142.35,7.0221]
[1750967489421,7.0209,142.39,142.32,6.76620527]
[1750967489620,7.0209,142.39,142.32,13.20253851]
[1750967489830,7.0211,142.38,142.32,13.20253851]
[1750967490325,37.12,142.43,142.35,6.76620527]
[1750967490519,37.12,142.43,142.35,44.24620527]
[1750967490721,43.88620527,142.43,142.35,44.24620527]
[1750967490926,7.0203,142.4,142.37,7.0212]
[1750967491327,4.7254,142.45,142.35,44.24620527]
[1750967491517,4.7254,142.45,142.37,6.76620527]
[1750967492226,4.7254,142.45,142.4,7.0199]
[1750967492428,4.7254,142.45,142.37,6.76620527]
[1750967492627,7.0188,142.43,142.4,7.0197]
[1750967492828,4.7254,142.45,142.37,6.76620527]
[1750967493232,7.0182,142.44,142.41,7.0191]
[1750967494425,37.48,142.47,142.41,6.76620527]
[1750967494929,37.48,142.47,142.45,7.0174]
[1750967495124,46.55270527,142.5,142.45,7.0174]
[1750967495321,7.0161,142.48,142.45,7.0174]
[1750967495522,46.55270527,142.5,142.45,7.0174]
[1750967495721,46.55270527,142.5,142.41,9.26450527]
[1750967496428,7.017,142.47,142.44,7.018]
[1750967496629,46.55270527,142.5,142.41,9.26450527]
[1750967496933,46.55270527,142.5,142.44,7.0177]
[1750967497232,39.7865,142.5,142.41,9.26450527]
[1750967497532,39.7865,142.5,142.45,7.0172]
[1750967497828,7.0162,142.48,142.45,7.0172]
[1750967498027,46.55270527,142.5,142.41,2.4983]
[1750967498225,46.55270527,142.5,142.41,9.26450527]
[1750967498425,7.017,142.47,142.41,9.26450527]
[1750967498633,46.55270527,142.5,142.41,6.76620527]
[1750967498829,7.0177,142.45,142.41,6.76620527]
[1750967499140,46.55270527,142.5,142.41,6.76620527]
[1750967499933,7.0175,142.46,142.41,6.76620527]
[1750967500433,7.0175,142.46,142.42,7.0186]
[1750967500733,7.0175,142.46,142.41,6.76620527]
[1750967500927,7.0175,142.46,142.44,7.018]
[1750967501326,7.0168,142.47,142.41,6.76620527]
[1750967502036,7.0162,142.48,142.45,7.0173]
[1750967502628,7.0158,142.49,142.43,44.24620527]
[1750967503021,37.48,142.5,142.43,44.24620527]
[1750967503226,7.0163,142.48,142.45,7.0171]
[1750967503431,7.0163,142.48,142.43,44.24620527]
[1750967503825,37.48,142.5,142.43,37.48]
[1750967504029,37.48,142.5,142.41,6.76620527]
[1750967504230,6.76620527,142.47,142.4,43.91633324]
[1750967504529,37.48,142.46,142.4,37.48]
[1750967504728,37.48,142.46,142.41,7.0193]
[1750967504927,7.0185,142.44,142.41,7.0193]
[1750967505125,37.48,142.46,142.4,37.48]
[1750967505333,6.76620527,142.45,142.39,7.0202]
[1750967505929,7.0194,142.42,142.39,7.0202]
[1750967506126,6.76620527,142.45,142.38,7.0207]
[1750967506332,7.0197,142.41,142.38,13.45703324]
[1750967506529,9.11440527,142.45,142.37,46.23183324]
[1750967506733,9.11440527,142.45,142.38,6.43633324]
[1750967506734,2.3482,142.45,142.38,6.43633324]
[1750967506935,37.48,142.46,142.39,6.76620527]
[1750967507331,37.48,142.46,142.42,7.0186]
[1750967507640,7.0178,142.45,142.42,7.0186]
[1750967507833,7.0178,142.45,142.43,7.0185]
[1750967508340,7.0178,142.45,142.42,7.0188]
[1750967509735,7.0178,142.45,142.43,7.0185]
[1750967510341,44.4973,142.46,142.43,7.0185]
[1750967510940,7.0168,142.47,142.44,7.0179]
[1750967511337,46.55030527,142.49,142.41,44.24620527]
[1750967511338,39.7841,142.49,142.41,44.24620527]
[1750967511543,39.7841,142.49,142.42,6.41626579]
[1750967511842,39.7841,142.49,142.41,53.15917106]
[1750967512140,7.0166,142.47,142.44,7.0177]
[1750967513637,7.017,142.46,142.43,7.0183]
[1750967514137,7.0178,142.45,142.41,44.24620527]
[1750967514341,7.0178,142.45,142.41,37.48]
[1750967515238,7.0178,142.45,142.42,7.0187]
[1750967515438,7.0178,142.45,142.41,37.48]
[1750967516034,7.0178,142.45,142.42,7.0186]
[1750967516435,7.0173,142.46,142.41,37.48]
[1750967516736,7.0173,142.46,142.44,7.018]
[1750967517243,37.48,142.49,142.43,6.76620527]
[1750967517744,7.0163,142.48,142.45,7.0171]
[1750967517939,4.6714,142.52,142.45,6.76620527]
[1750967518152,39.8382,142.54,142.47,6.76620527]
[1750967518343,39.8382,142.54,142.49,7.0155]
[1750967518840,39.8382,142.54,142.47,6.76620527]
[1750967519042,7.0148,142.51,142.48,7.0156]
[1750967519235,7.0148,142.51,142.47,6.76620527]
[1750967519635,7.0148,142.51,142.48,7.016]
[1750967519834,7.0148,142.51,142.47,6.76620527]
[1750967520338,7.0143,142.52,142.45,44.24620527]
[1750967520546,7.0143,142.52,142.45,46.66570527]
[1750967520746,7.0143,142.52,142.5,7.015]
[1750967520946,7.0137,142.53,142.5,7.015]
[1750967521146,7.0137,142.53,142.47,6.76620527]
[1750967522046,7.0137,142.53,142.5,7.0147]
[1750967522846,44.4933,142.54,142.52,7.0141]
[1750967523048,37.48,142.54,142.47,9.24550527]
[1750967523447,7.0138,142.53,142.5,7.0148]
[1750967523854,7.0142,142.52,142.5,7.0148]
[1750967524152,37.48,142.54,142.47,2.4793]
[1750967524341,7.0148,142.51,142.45,37.48]
[1750967524952,6.76620527,142.53,142.45,37.48]
[1750967525351,6.76620527,142.53,142.47,7.0163]
[1750967525747,37.48,142.54,142.45,37.48]
[1750967525954,44.1781,142.57,142.47,6.76620527]
[1750967526159,7.0131,142.54,142.47,6.76620527]
[1750967526360,7.0131,142.54,142.51,7.0142]
[1750967526860,7.0139,142.53,142.5,7.0146]
[1750967527448,7.0139,142.53,142.51,7.0145]
[1750967527651,7.0133,142.54,142.51,7.0145]
[1750967527958,50.94430527,142.57,142.51,7.0145]
[1750967529061,50.94430527,142.57,142.52,7.014]
[1750967529563,7.0133,142.54,142.47,6.76620527]
[1750967529866,7.0133,142.54,142.51,7.0143]
[1750967530364,44.1781,142.57,142.51,6.76620527]
[1750967530557,6.76620527,142.59,142.51,6.76620527]
[1750967530558,631.54,142.6,142.51,6.76620527]
[1750967530761,7.0119,142.57,142.54,7.0127]
[1750967531258,7.0119,142.57,142.51,6.76620527]
[1750967531765,7.0122,142.56,142.51,6.76620527]
[1750967532352,7.0126,142.55,142.53,7.0133]
[1750967532556,668.6,142.6,142.53,7.0133]
[1750967532864,7.0127,142.55,142.53,7.0133]
[1750967533370,668.6,142.6,142.53,7.0133]
[1750967533663,7.0126,142.56,142.53,7.0133]
[1750967533861,668.6,142.6,142.51,6.76620527]
[1750967534367,7.0118,142.57,142.51,6.76620527]
[1750967535262,7.0118,142.57,142.54,7.0127]
[1750967535462,7.0123,142.56,142.54,7.0127]
[1750967536063,7.0127,142.55,142.53,7.0134]
[1750967536468,6.76620527,142.59,142.53,7.0134]
[1750967536660,7.0125,142.56,142.53,7.0134]
[1750967538772,6.76620527,142.59,142.52,7.0138]
[1750967538975,6.76620527,142.59,142.49,43.82620527]
[1750967539472,7.013,142.55,142.52,7.0138]
[1750967540768,7.013,142.55,142.53,7.0136]
[1750967542467,7.013,142.55,142.52,7.0138]
[1750967543668,7.0124,142.56,142.53,7.0133]
[1750967543874,4.50785284,142.58,142.53,7.0133]
[1750967544468,7.0129,142.55,142.52,7.014]
[1750967544668,41.54785284,142.56,142.49,37.06]
[1750967545075,41.54785284,142.56,142.5,7.0148]
[1750967545275,4.50785284,142.55,142.5,7.0148]
[1750967545577,7.0139,142.53,142.5,7.0148]
[1750967545976,4.50785284,142.55,142.5,7.0148]
[1750967546179,4.50785284,142.53,142.46,41.54785284]
[1750967546579,7.0149,142.51,142.48,7.0158]
[1750967547178,4.50785284,142.55,142.48,4.50785284]
[1750967547867,7.0138,142.53,142.5,7.0148]
[1750967549980,7.0138,142.53,142.51,7.0146]
[1750967551279,7.0138,142.53,142.5,7.0149]
[1750967552473,7.0141,142.52,142.5,7.0149]
[1750967552773,4.50785284,142.53,142.46,41.54785284]
[1750967553180,7.015,142.51,142.46,41.54785284]
[1750967553674,7.015,142.51,142.49,7.0154]
[1750967553879,4.50785284,142.52,142.46,37.04]
[1750967554281,4.50785284,142.52,142.48,7.0161]
[1750967554477,7.0153,142.5,142.46,37.04]
[1750967554877,7.0158,142.49,142.47,7.0163]
[1750967556585,41.02785284,142.52,142.46,7.0167]
[1750967557285,7.0158,142.49,142.46,7.0167]
[1750967557480,4.50785284,142.5,142.43,49.8966115]
[1750967557681,4.50785284,142.5,142.43,47.4553115]
[1750967557882,7.0164,142.48,142.43,47.4553115]
[1750967558074,7.0164,142.48,142.41,12.92108047]
[1750967558075,41.04785284,142.48,142.41,8.5775115]
[1750967558276,4.50785284,142.44,142.4,36.54]
[1750967558477,4.50785284,142.44,142.41,7.0195]
[1750967558873,4.50785284,142.44,142.4,36.54]
[1750967559082,7.0188,142.43,142.4,7.0198]
[1750967559283,7.0188,142.43,142.38,96.33569598]
[1750967559482,4.50785284,142.44,142.38,96.33569598]
[1750967560388,11.52625284,142.44,142.41,7.0193]
[1750967560575,4.50785284,142.44,142.41,7.0193]
[1750967561485,4.50785284,142.44,142.4,7.0197]
[1750967561884,41.04785284,142.44,142.4,7.0197]
[1750967562087,7.0186,142.43,142.4,7.0197]
[1750967562387,41.04785284,142.44,142.39,7.0203]
[1750967562582,7.0193,142.42,142.39,7.0203]
[1750967563192,7.0188,142.43,142.4,7.02]
[1750967563778,7.0198,142.41,142.38,87.75818448]
[1750967564086,4.50785284,142.42,142.38,87.75818448]
[1750967564287,7.0198,142.41,142.38,87.75818448]
[1750967564790,6.97915284,142.43,142.39,7.0204]
[1750967564990,6.97915284,142.43,142.38,87.75818448]
[1750967565491,7.0196,142.41,142.38,87.75818448]
[1750967566191,7.0192,142.42,142.38,87.75818448]
[1750967566888,13.99785284,142.43,142.38,87.75818448]
[1750967567187,13.99785284,142.43,142.4,7.0198]
[1750967567389,36.54,142.44,142.39,4.50785284]
[1750967567893,43.5582,142.44,142.39,4.50785284]
[1750967569079,36.54,142.44,142.42,7.0189]
[1750967569280,36.54,142.44,142.39,4.50785284]
[1750967569794,43.5583,142.44,142.41,7.0193]
[1750967569994,36.54,142.47,142.41,4.50785284]
[1750967570289,36.54,142.47,142.44,7.0176]
[1750967571193,36.54,142.47,142.45,7.0173]
[1750967571387,36.54,142.47,142.41,41.04785284]
[1750967572193,7.0175,142.46,142.43,7.0183]
[1750967572895,7.0175,142.46,142.44,7.0179]
[1750967573895,7.0175,142.46,142.41,41.04785284]
[1750967574295,7.0175,142.46,142.43,7.0181]
[1750967577592,7.0171,142.46,142.43,7.0181]
[1750967577796,4.50785284,142.45,142.38,124.29818448]
[1750967578296,7.0188,142.43,142.4,7.02]
[1750967578687,7.0188,142.43,142.38,124.29818448]
[1750967578897,7.0185,142.44,142.41,7.0191]
[1750967579098,4.50785284,142.45,142.41,7.0191]
[1750967579394,7.0183,142.44,142.42,7.0187]
[1750967579696,41.04785284,142.47,142.38,124.29818448]
[1750967579697,36.54,142.47,142.41,4.50785284]
[1750967579895,41.04785284,142.5,142.42,36.54]
[1750967580299,41.04785284,142.5,142.43,4.50785284]
[1750967580691,7.0159,142.49,142.46,7.0167]
[1750967581096,41.04785284,142.5,142.46,7.0167]
[1750967581296,41.04785284,142.5,142.43,4.50785284]
[1750967581297,7.0164,142.48,142.45,7.0173]
[1750967581801,7.0166,142.47,142.44,7.0178]
[1750967582089,7.0166,142.47,142.43,4.50785284]
[1750967582297,7.0166,142.47,142.45,7.0175]
[1750967584594,7.0163,142.48,142.45,7.0175]
[1750967584793,36.54,142.5,142.43,4.50785284]
[1750967584994,7.0158,142.49,142.43,4.50785284]
[1750967585196,4.50785284,142.52,142.45,4.50785284]
[1750967585505,7.0154,142.5,142.47,7.0163]
[1750967585999,36.34,142.53,142.47,4.50785284]
[1750967586400,36.34,142.53,142.5,7.0148]
[1750967586592,36.34,142.53,142.47,4.50785284]
[1750967586797,4.50785284,142.55,142.49,4.50785284]
[1750967586996,7.0131,142.55,142.52,7.0141]
[1750967587192,36.34,142.56,142.49,4.50785284]
[1750967587403,36.34,142.56,142.51,4.50785284]
[1750967587599,2.4009,142.57,142.54,7.013]
[1750967588497,2.4009,142.57,142.51,4.50785284]
[1750967588691,6.90875284,142.57,142.51,4.50785284]
[1750967589305,6.90875284,142.57,142.47,51.71046434]
[1750967589306,4.50785284,142.55,142.47,51.71046434]
[1750967589607,40.84785284,142.55,142.47,43.13295284]
[1750967589801,7.0139,142.53,142.5,7.0149]
[1750967590001,40.84785284,142.55,142.49,4.50785284]
[1750967590403,7.0133,142.54,142.51,7.0143]
[1750967590699,40.84785284,142.55,142.51,7.0143]
[1750967590907,7.0132,142.54,142.51,7.0143]
[1750967592310,7.0136,142.53,142.51,7.0143]
[1750967592607,7.0136,142.53,142.5,7.0148]
[1750967593603,7.0143,142.52,142.49,11.52315284]
[1750967593798,7.0143,142.52,142.49,4.50785284]
[1750967594511,7.0139,142.53,142.5,7.0148]
[1750967597325,7.0139,142.53,142.5,7.015]
[1750967598106,40.84785284,142.55,142.51,7.0146]
[1750967598312,7.0133,142.54,142.51,7.0146]
[1750967599511,7.0137,142.53,142.51,7.0146]
[1750967599903,7.0137,142.53,142.5,7.0146]
[1750967601314,7.0137,142.53,142.51,7.0145]
[1750967601907,7.0137,142.53,142.5,7.0148]
[1750967602110,7.0137,142.53,142.47,43.13295284]
[1750967603116,7.0137,142.53,142.51,7.0145]
[1750967603817,7.0133,142.54,142.51,7.0145]
[1750967605419,7.0138,142.53,142.5,7.0148]
[1750967606215,7.0133,142.54,142.51,7.0143]
[1750967607715,7.0133,142.54,142.52,7.014]
[1750967607924,7.0138,142.53,142.47,38.6251]
[1750967608114,7.0138,142.53,142.48,4.50785284]
[1750967609427,7.0138,142.53,142.51,7.0144]
[1750967609719,36.32,142.58,142.52,4.50785284]
[1750967609926,43.3295,142.61,142.54,4.50785284]
[1750967610216,47.83735284,142.61,142.54,4.50785284]
[1750967610414,47.83735284,142.61,142.57,7.0114]
[1750967610610,43.3295,142.61,142.57,7.0114]
[1750967610822,43.3295,142.61,142.54,4.50785284]
[1750967611023,43.3295,142.61,142.57,7.0113]
[1750967611417,7.0108,142.59,142.57,7.0113]
[1750967613324,7.0116,142.57,142.55,36.32]
[1750967614322,7.0114,142.58,142.55,43.3324]
[1750967614725,7.0114,142.58,142.55,36.32]
[1750967615526,7.0114,142.58,142.55,43.3323]
[1750967616125,7.0118,142.57,142.55,43.3323]
[1750967616632,7.0118,142.57,142.55,36.32]
[1750967617423,7.0121,142.56,142.55,36.32]
[1750967617728,4.50785284,142.58,142.52,36.08]
[1750967619326,7.0125,142.56,142.53,7.0135]
[1750967620028,7.0128,142.55,142.53,7.0135]
[1750967620432,7.0128,142.55,142.52,43.0937]
[1750967620831,7.0132,142.54,142.52,36.08]
[1750967622233,7.0136,142.53,142.51,7.0144]
[1750967622427,4.50785284,142.54,142.49,36.08]
[1750967622628,4.50785284,142.54,142.47,15.43506434]
[1750967622629,4.50785284,142.52,142.45,13.08536434]
[1750967622931,7.0158,142.49,142.46,7.0168]
[1750967623119,7.0158,142.49,142.45,36.08]
[1750967623323,7.0158,142.49,142.46,7.0167]
[1750967624030,4.50785284,142.52,142.45,36.08]
[1750967624232,4.50785284,142.52,142.45,40.58785284]
[1750967624730,7.0149,142.51,142.48,7.0158]
[1750967624938,4.50785284,142.52,142.45,40.58785284]
[1750967625128,7.0152,142.5,142.47,7.0162]
[1750967625633,7.0152,142.5,142.48,7.0159]
[1750967626028,7.0148,142.51,142.48,7.0159]
[1750967626725,4.50785284,142.52,142.45,49.16536434]
[1750967627445,7.0148,142.51,142.45,49.16536434]
[1750967628538,7.0148,142.51,142.48,7.0157]
[1750967629040,7.0148,142.51,142.46,8.5775115]
[1750967629246,7.0143,142.52,142.47,4.50785284]
[1750967629538,2.3233,142.55,142.47,8.5775115]
[1750967629539,6.73796402,142.55,142.47,8.5775115]
[1750967629744,4.50785284,142.48,142.41,8.5775115]
[1750967630341,4.50785284,142.48,142.41,13.08536434]
[1750967630936,36.08,142.49,142.43,4.50785284]
[1750967631139,36.08,142.49,142.43,13.08536434]
[1750967631546,7.0162,142.48,142.43,13.08536434]
[1750967632248,7.0162,142.48,142.46,7.0169]
[1750967634550,36.08,142.54,142.47,4.50785284]
[1750967634750,40.58785284,142.54,142.47,4.50785284]
[1750967634947,40.58785284,142.54,142.5,7.0148]
[1750967635141,36.08,142.54,142.47,13.08536434]
[1750967635553,7.0138,142.53,142.47,13.08536434]
[1750967635756,36.08,142.54,142.47,13.08536434]
[1750967636051,7.0139,142.53,142.47,13.08536434]
[1750967636554,7.0139,142.53,142.51,7.0143]
[1750967637643,7.0134,142.54,142.51,7.0143]
[1750967638454,4.7938,142.56,142.51,4.50785284]
[1750967638653,36.08,142.57,142.51,4.50785284]
[1750967639266,7.0129,142.55,142.53,7.0134]
[1750967639550,7.0129,142.55,142.51,4.50785284]
[1750967640061,7.0123,142.56,142.53,7.0133]